fUSD/lending_fUSD_20260615
["ID","MTS","AMOUNT","RATE_DAILY","PERIOD"]
[425089968,1781481032000,-428.57434684,0.00010817,2]
[425089960,1781481032000,-500.0,9.754e-05,2]
[425089962,1781481032000,-154.89750267,9.9e-05,2]
[425089964,1781481032000,-433.0,0.00010725,2]
[425089967,1781481032000,-2477.14565316,0.00010817,2]
[425089961,1781481032000,-3666.18159394,9.899e-05,2]
[425089959,1781481032000,-193.0,9.754e-05,2]
[425089970,1781481032000,-1345.96048937,0.00010931,2]
[425089965,1781481032000,-714.74,0.00010781,2]
[425089963,1781481032000,-176.57,0.00010434,2]
[425089979,1781481032000,-3621.9691581,0.00010931,2]
[425089991,1781481032000,-166.66,0.00011374,2]
[425089984,1781481032000,-166.66,0.00011097,2]
[425089974,1781481032000,-1160.87387984,0.00010931,2]
[425089977,1781481032000,-397.84647269,0.00010931,2]
[425089986,1781481032000,-166.66,0.00011235,2]
[425089989,1781481032000,-150.99,0.00011281,2]
[425089993,1781481032000,-42762.54681988,0.00011485,2]
[425090002,1781481032000,-250.0,0.00011712,2]
[425090004,1781481032000,-1000.0,0.00011967,2]
[425090003,1781481032000,-676.0,0.00011798,2]
[425089998,1781481032000,-23158.98082781,0.00011485,2]
[425089966,1781481032000,-170.01,0.00010785,2]
[425089982,1781481032000,-166.66,0.00010959,2]
[425089957,1781481032000,-300.0,9.753e-05,2]
[425089933,1781481032000,-250.0,8.867e-05,2]
[425089956,1781481032000,-500.0,9.753e-05,2]
[425090001,1781481032000,-1234.14,0.00011667,2]
[425089932,1781481032000,-325.37609208,8.866e-05,2]
[425089935,1781481032000,-250.0,8.868e-05,2]
[425089934,1781481032000,-300.0,8.867e-05,2]
[425089936,1781481032000,-300.0,8.868e-05,2]
[425089941,1781481032000,-300.0,9.749e-05,2]
[425089937,1781481032000,-261.50273083,8.95e-05,2]
[425089938,1781481032000,-162.78437055,8.952e-05,2]
[425089939,1781481032000,-50.04325938,8.952e-05,2]
[425089943,1781481032000,-193.0,9.75e-05,2]
[425089942,1781481032000,-255.0,9.75e-05,2]
[425089958,1781481032000,-250.0,9.753e-05,2]
[425089944,1781481032000,-4000.0,9.75e-05,2]
[425089945,1781481032000,-301.61831471,9.75e-05,2]
[425089946,1781481032000,-193.0,9.75e-05,2]
[425089951,1781481032000,-300.0,9.752e-05,2]
[425089950,1781481032000,-4000.0,9.752e-05,2]
[425089948,1781481032000,-500.0,9.75e-05,2]
[425089949,1781481032000,-193.0,9.752e-05,2]
[425089947,1781481032000,-300.0,9.75e-05,2]
[425089952,1781481032000,-500.0,9.752e-05,2]
[425089953,1781481032000,-306.90359725,9.752e-05,2]
[425089954,1781481032000,-500.0,9.752e-05,2]
[425089955,1781481032000,-300.0,9.753e-05,2]
[425089940,1781481032000,-592.57054611,9.098e-05,2]
[425090005,1781481032000,-1111.1,0.00012161,2]
[425090013,1781481032000,-163.98,0.00012732,2]
[425089999,1781481032000,-166.66,0.00011512,2]
[425090045,1781481032000,-540.96,0.00013698,2]
[425090035,1781481032000,-1330.23110253,0.00013623,2]
[425090043,1781481032000,-540.96,0.00013698,2]
[425090040,1781481032000,-540.96,0.00013698,2]
[425090046,1781481032000,-540.96,0.00013698,2]
[425090036,1781481032000,-500.0,0.00013696,2]
[425090042,1781481032000,-540.96,0.00013698,2]
[425090041,1781481032000,-540.96,0.00013698,2]
[425089996,1781481032000,-28136.02235231,0.00011485,2]
[425090037,1781481032000,-7211.98907386,0.00013697,2]
[425090038,1781481032000,-11112.64796883,0.00013697,2]
[425090034,1781481032000,-6821.9615,0.00013598,2]
[425090039,1781481032000,-540.96,0.00013698,2]
[425090049,1781481032000,-500.0,0.00013698,2]
[425090053,1781481032000,-500.0,0.00013698,2]
[425090048,1781481032000,-540.96,0.00013698,2]
[425090054,1781481032000,-500.0,0.00013698,2]
[425090051,1781481032000,-500.0,0.00013698,2]
[425090055,1781481032000,-500.0,0.00013698,2]
[425090052,1781481032000,-500.0,0.00013698,2]
[425090056,1781481032000,-500.0,0.00013698,2]
[425090050,1781481032000,-500.0,0.00013698,2]
[425090057,1781481032000,-500.0,0.00013698,2]
[425090058,1781481032000,-500.0,0.00013698,2]
[425090047,1781481032000,-540.96,0.00013698,2]
[425090022,1781481032000,-174.73,0.00013332,2]
[425090044,1781481032000,-540.96,0.00013698,2]
[425090029,1781481032000,-150.0,0.00013488,2]
[425090000,1781481032000,-166.66,0.0001165,2]
[425090033,1781481032000,-16343.4343,0.00013598,2]
[425090009,1781481032000,-167.59332163,0.00012329,2]
[425090020,1781481032000,-482.6807,0.00013198,2]
[425090019,1781481032000,-150.0,0.00013147,2]
[425090017,1781481032000,-150.0,0.000131,2]
[425090010,1781481032000,-200.0,0.00012347,2]
[425090008,1781481032000,-500.0,0.0001232,2]
[425090014,1781481032000,-2777.98,0.00012807,2]
[425090016,1781481032000,-151.0,0.00013097,2]
[425090011,1781481032000,-253.78,0.00012421,2]
[425090012,1781481032000,-170.01,0.00012582,2]
[425090006,1781481032000,-192.28,0.00012173,2]
[425090027,1781481032000,-500.0,0.00013356,2]
[425090015,1781481032000,-167.59332162,0.00012872,2]
[425090023,1781481032000,-500.0,0.00013356,2]
[425090021,1781481032000,-151.0,0.00013298,2]
[425090024,1781481032000,-2000.0,0.00013356,2]
[425090025,1781481032000,-500.0,0.00013356,2]
[425090026,1781481032000,-377.5959589,0.00013356,2]
[425090032,1781481032000,-150.0,0.00013488,2]
[425090028,1781481032000,-167.59332163,0.00013397,2]
[425090030,1781481032000,-150.0,0.00013488,2]
[425090031,1781481032000,-150.0,0.00013488,2]
[425090018,1781481032000,-151.0,0.00013109,2]
[425090074,1781481033000,-500.0,0.00013698,2]
[425090071,1781481033000,-500.0,0.00013698,2]
[425090077,1781481033000,-500.0,0.00013698,2]
[425090075,1781481033000,-500.0,0.00013698,2]
[425090082,1781481033000,-500.0,0.00013698,2]
[425090079,1781481033000,-500.0,0.00013698,2]
[425090076,1781481033000,-500.0,0.00013698,2]
[425090080,1781481033000,-500.0,0.00013698,2]
[425090073,1781481033000,-500.0,0.00013698,2]
[425090078,1781481033000,-500.0,0.00013698,2]
[425090072,1781481033000,-500.0,0.00013698,2]
[425090067,1781481033000,-500.0,0.00013698,2]
[425090069,1781481033000,-500.0,0.00013698,2]
[425090065,1781481033000,-500.0,0.00013698,2]
[425090068,1781481033000,-500.0,0.00013698,2]
[425090063,1781481033000,-500.0,0.00013698,2]
[425090066,1781481033000,-500.0,0.00013698,2]
[425090064,1781481033000,-500.0,0.00013698,2]
[425090062,1781481033000,-500.0,0.00013698,2]
[425090061,1781481033000,-500.0,0.00013698,2]
[425090059,1781481033000,-500.0,0.00013698,2]
[425090060,1781481033000,-500.0,0.00013698,2]
[425090070,1781481033000,-579.28276306,0.00013698,2]
[425090081,1781481033000,-500.0,0.00013698,2]
[425090107,1781481033000,-97.23398166,0.00013698,2]
[425090087,1781481033000,-500.0,0.00013698,2]
[425090083,1781481033000,-268.64440987,0.00013698,2]
[425090105,1781481033000,-500.0,0.00013698,2]
[425090106,1781481033000,-500.0,0.00013698,2]
[425090104,1781481033000,-365.57067828,0.00013698,2]
[425090103,1781481033000,-134.42932172,0.00013698,2]
[425090102,1781481033000,-365.0736246,0.00013698,2]
[425090099,1781481033000,-500.0,0.00013698,2]
[425090095,1781481033000,-500.0,0.00013698,2]
[425090097,1781481033000,-51.3241623,0.00013698,2]
[425090094,1781481033000,-500.0,0.00013698,2]
[425090096,1781481033000,-448.6758377,0.00013698,2]
[425090100,1781481033000,-500.0,0.00013698,2]
[425090098,1781481033000,-500.0,0.00013698,2]
[425090093,1781481033000,-500.0,0.00013698,2]
[425090092,1781481033000,-500.0,0.00013698,2]
[425090085,1781481033000,-333.12734179,0.00013698,2]
[425090088,1781481033000,-500.0,0.00013698,2]
[425090090,1781481033000,-500.0,0.00013698,2]
[425090091,1781481033000,-553.92,0.00013698,2]
[425090084,1781481033000,-362.36559013,0.00013698,2]
[425090089,1781481033000,-500.0,0.00013698,2]
[425090086,1781481033000,-166.87265821,0.00013698,2]
[425090101,1781481033000,-134.9263754,0.00013698,2]
[425090127,1781481038000,-253.78,0.00013973,2]
[425090130,1781481038000,-250.0,0.00014,2]
[425090131,1781481038000,-202.105689,0.00014,2]
[425090129,1781481038000,-1330.23110248,0.00013988,2]
[425090135,1781481038000,-200.63335723,0.00014155,2]
[425090133,1781481038000,-151.0,0.00014155,2]
[425090134,1781481038000,-156.587,0.00014155,2]
[425090136,1781481038000,-1330.23110248,0.0001417,2]
[425090126,1781481038000,-251.606539,0.00013965,2]
[425090132,1781481038000,-1500.0,0.00014002,2]
[425090125,1781481038000,-189.411833,0.00013965,2]
[425090114,1781481038000,-200.0,0.00013699,2]
[425090122,1781481038000,-187.1,0.00013843,2]
[425090123,1781481038000,-227.51098,0.00013965,2]
[425090124,1781481038000,-202.415003,0.00013965,2]
[425090120,1781481038000,-1330.23110248,0.00013805,2]
[425090119,1781481038000,-167.59332162,0.00013723,2]
[425090118,1781481038000,-1.26389731,0.00013699,2]
[425090117,1781481038000,-388.98610269,0.00013699,2]
[425090116,1781481038000,-616.88917857,0.00013699,2]
[425090115,1781481038000,-105.62082143,0.00013699,2]
[425090138,1781481038000,-500.0,0.00014178,2]
[425090113,1781481038000,-402.76601834,0.00013698,2]
[425090128,1781481038000,-150.0,0.00013987,2]
[425090139,1781481038000,-500.0,0.00014178,2]
[425090121,1781481038000,-187.1,0.00013843,2]
[425090142,1781481038000,-500.0,0.00014178,2]
[425090137,1781481038000,-500.0,0.00014178,2]
[425090167,1781481038000,-500.0,0.00014178,2]
[425090166,1781481038000,-500.0,0.00014178,2]
[425090165,1781481038000,-500.0,0.00014178,2]
[425090163,1781481038000,-500.0,0.00014178,2]
[425090164,1781481038000,-150.0,0.00014178,2]
[425090162,1781481038000,-500.0,0.00014178,2]
[425090161,1781481038000,-150.0,0.00014178,2]
[425090158,1781481038000,-500.0,0.00014178,2]
[425090157,1781481038000,-579.2933229,0.00014178,2]
[425090156,1781481038000,-500.0,0.00014178,2]
[425090151,1781481038000,-240.68764534,0.00014178,2]
[425090160,1781481038000,-500.0,0.00014178,2]
[425090149,1781481038000,-500.0,0.00014178,2]
[425090159,1781481038000,-551.99405593,0.00014178,2]
[425090143,1781481038000,-500.0,0.00014178,2]
[425090141,1781481038000,-500.0,0.00014178,2]
[425090146,1781481038000,-500.0,0.00014178,2]
[425090147,1781481038000,-500.0,0.00014178,2]
[425090145,1781481038000,-500.0,0.00014178,2]
[425090140,1781481038000,-500.0,0.00014178,2]
[425090148,1781481038000,-500.0,0.00014178,2]
[425090154,1781481038000,-500.0,0.00014178,2]
[425090152,1781481038000,-500.0,0.00014178,2]
[425090150,1781481038000,-500.0,0.00014178,2]
[425090144,1781481038000,-500.0,0.00014178,2]
[425090207,1781481039000,-449.0,0.00014178,2]
[425090211,1781481039000,-500.0,0.00014178,2]
[425090209,1781481039000,-449.0,0.00014178,2]
[425090206,1781481039000,-449.0,0.00014178,2]
[425090202,1781481039000,-466.0,0.00014178,2]
[425090200,1781481039000,-466.0,0.00014178,2]
[425090204,1781481039000,-466.0,0.00014178,2]
[425090203,1781481039000,-466.0,0.00014178,2]
[425090199,1781481039000,-466.0,0.00014178,2]
[425090210,1781481039000,-449.0,0.00014178,2]
[425090205,1781481039000,-468.48877466,0.00014178,2]
[425090223,1781481039000,-449.0,0.00014178,2]
[425090224,1781481039000,-523.29570536,0.00014178,2]
[425090215,1781481039000,-515.7929916,0.00014178,2]
[425090212,1781481039000,-449.0,0.00014178,2]
[425090214,1781481039000,-449.0,0.00014178,2]
[425090217,1781481039000,-449.0,0.00014178,2]
[425090216,1781481039000,-449.0,0.00014178,2]
[425090219,1781481039000,-500.0,0.00014178,2]
[425090229,1781481039000,-449.0,0.00014178,2]
[425090218,1781481039000,-449.0,0.00014178,2]
[425090220,1781481039000,-449.0,0.00014178,2]
[425090222,1781481039000,-500.0,0.00014178,2]
[425090221,1781481039000,-449.0,0.00014178,2]
[425090201,1781481039000,-466.0,0.00014178,2]
[425090213,1781481039000,-500.0,0.00014178,2]
[425090196,1781481039000,-466.0,0.00014178,2]
[425090186,1781481039000,-466.0,0.00014178,2]
[425090198,1781481039000,-466.0,0.00014178,2]
[425090171,1781481039000,-552.49199407,0.00014178,2]
[425090173,1781481039000,-500.0,0.00014178,2]
[425090169,1781481039000,-500.0,0.00014178,2]
[425090168,1781481039000,-204.40733021,0.00014178,2]
[425090180,1781481039000,-466.0,0.00014178,2]
[425090178,1781481039000,-400.37540708,0.00014178,2]
[425090177,1781481039000,-500.0,0.00014178,2]
[425090176,1781481039000,-500.0,0.00014178,2]
[425090174,1781481039000,-500.0,0.00014178,2]
[425090183,1781481039000,-500.0,0.00014178,2]
[425090182,1781481039000,-466.0,0.00014178,2]
[425090181,1781481039000,-500.0,0.00014178,2]
[425090179,1781481039000,-466.0,0.00014178,2]
[425090184,1781481039000,-247.9963329,0.00014178,2]
[425090175,1781481039000,-500.0,0.00014178,2]
[425090185,1781481039000,-466.0,0.00014178,2]
[425090188,1781481039000,-466.0,0.00014178,2]
[425090189,1781481039000,-466.0,0.00014178,2]
[425090187,1781481039000,-466.0,0.00014178,2]
[425090193,1781481039000,-466.0,0.00014178,2]
[425090194,1781481039000,-466.0,0.00014178,2]
[425090192,1781481039000,-466.0,0.00014178,2]
[425090190,1781481039000,-466.0,0.00014178,2]
[425090195,1781481039000,-466.0,0.00014178,2]
[425090191,1781481039000,-466.0,0.00014178,2]
[425090197,1781481039000,-466.0,0.00014178,2]
[425090228,1781481039000,-200.0,0.00014178,2]
[425090208,1781481039000,-449.0,0.00014178,2]
[425090225,1781481039000,-150.0,0.00014178,2]
[425090263,1781481039000,-181.0,0.00014178,2]
[425090265,1781481039000,-150.0,0.00014237,2]
[425090257,1781481039000,-616.0,0.00014178,2]
[425090258,1781481039000,-616.0,0.00014178,2]
[425090260,1781481039000,-616.0,0.00014178,2]
[425090264,1781481039000,-5630.91004356,0.00014189,2]
[425090261,1781481039000,-616.0,0.00014178,2]
[425090267,1781481039000,-147242.20032301,0.0001425,2]
[425090266,1781481039000,-500.0,0.00014249,2]
[425090268,1781481039000,-5630.91004356,0.00014268,2]
[425090270,1781481039000,-151.0,0.00014289,2]
[425090269,1781481039000,-151.0,0.00014289,2]
[425090272,1781481039000,-5630.91004356,0.00014347,2]
[425090276,1781481039000,-2686.0,0.000144,2]
[425090273,1781481039000,-1330.23110248,0.00014353,2]
[425090275,1781481039000,-170.01,0.0001438,2]
[425090274,1781481039000,-198.74401,0.0001437,2]
[425090277,1781481039000,-2000.0,0.000144,2]
[425090281,1781481039000,-500.0,0.00014451,2]
[425090280,1781481039000,-5630.91004356,0.00014426,2]
[425090278,1781481039000,-282.532724,0.00014406,2]
[425090279,1781481039000,-293.275872,0.00014406,2]
[425090282,1781481039000,-500.0,0.00014451,2]
[425090283,1781481039000,-500.0,0.00014451,2]
[425090226,1781481039000,-449.0,0.00014178,2]
[425090262,1781481039000,-638.12019549,0.00014178,2]
[425090255,1781481039000,-616.0,0.00014178,2]
[425090271,1781481039000,-151.0,0.00014292,2]
[425090259,1781481039000,-464.46218591,0.00014178,2]
[425090256,1781481039000,-449.0,0.00014178,2]
[425090230,1781481039000,-449.0,0.00014178,2]
[425090232,1781481039000,-449.0,0.00014178,2]
[425090231,1781481039000,-449.0,0.00014178,2]
[425090239,1781481039000,-616.0,0.00014178,2]
[425090241,1781481039000,-616.0,0.00014178,2]
[425090233,1781481039000,-449.0,0.00014178,2]
[425090235,1781481039000,-616.0,0.00014178,2]
[425090234,1781481039000,-449.0,0.00014178,2]
[425090236,1781481039000,-616.0,0.00014178,2]
[425090237,1781481039000,-616.0,0.00014178,2]
[425090238,1781481039000,-616.0,0.00014178,2]
[425090240,1781481039000,-616.0,0.00014178,2]
[425090227,1781481039000,-150.0,0.00014178,2]
[425090254,1781481039000,-616.0,0.00014178,2]
[425090243,1781481039000,-616.0,0.00014178,2]
[425090250,1781481039000,-616.0,0.00014178,2]
[425090249,1781481039000,-616.0,0.00014178,2]
[425090252,1781481039000,-616.0,0.00014178,2]
[425090244,1781481039000,-449.0,0.00014178,2]
[425090251,1781481039000,-616.0,0.00014178,2]
[425090247,1781481039000,-616.0,0.00014178,2]
[425090242,1781481039000,-616.0,0.00014178,2]
[425090248,1781481039000,-616.0,0.00014178,2]
[425090246,1781481039000,-616.0,0.00014178,2]
[425090253,1781481039000,-449.0,0.00014178,2]
[425090245,1781481039000,-616.0,0.00014178,2]
[425090321,1781481040000,-540.96,0.00014899,2]
[425090326,1781481040000,-540.96,0.00014899,2]
[425090324,1781481040000,-540.96,0.00014899,2]
[425090319,1781481040000,-200.0,0.0001488,2]
[425090320,1781481040000,-151.0,0.00014899,2]
[425090323,1781481040000,-540.96,0.00014899,2]
[425090318,1781481040000,-200.0,0.0001488,2]
[425090316,1781481040000,-412.68712,0.0001486,2]
[425090317,1781481040000,-200.0,0.00014879,2]
[425090314,1781481040000,-985.19998152,0.0001485,2]
[425090335,1781481040000,-500.0,0.00014899,2]
[425090322,1781481040000,-540.96,0.00014899,2]
[425090325,1781481040000,-540.96,0.00014899,2]
[425090333,1781481040000,-500.0,0.00014899,2]
[425090327,1781481040000,-1046.48317554,0.00014899,5]
[425090328,1781481040000,-1618.6668969,0.00014899,2]
[425090334,1781481040000,-500.0,0.00014899,2]
[425090332,1781481040000,-500.0,0.00014899,2]
[425090329,1781481040000,-207.65368765,0.00014899,2]
[425090331,1781481040000,-500.0,0.00014899,2]
[425090337,1781481040000,-548.5238769,0.00014899,2]
[425090347,1781481040000,-250.0,0.00014899,2]
[425090336,1781481040000,-500.0,0.00014899,2]
[425090341,1781481040000,-631.01,0.00014899,2]
[425090338,1781481040000,-500.0,0.00014899,2]
[425090339,1781481040000,-500.0,0.00014899,2]
[425090330,1781481040000,-500.0,0.00014899,2]
[425090315,1781481040000,-502.35889749,0.00014856,2]
[425090287,1781481040000,-170.63172329,0.0001451,2]
[425090313,1781481040000,-412.68712,0.0001485,2]
[425090340,1781481040000,-500.0,0.00014899,2]
[425090284,1781481040000,-260.92559,0.00014478,2]
[425090285,1781481040000,-150.0,0.00014487,2]
[425090286,1781481040000,-5630.91004356,0.00014505,2]
[425090288,1781481040000,-1330.23110248,0.00014535,2]
[425090298,1781481040000,-6800.1813,0.00014633,2]
[425090299,1781481040000,-13958.61523699,0.000147,2]
[425090293,1781481040000,-151.0,0.0001463,2]
[425090294,1781481040000,-721.65186203,0.00014633,2]
[425090297,1781481040000,-5025.87547994,0.00014633,2]
[425090290,1781481040000,-4591.842,0.00014552,2]
[425090292,1781481040000,-350.0,0.00014624,2]
[425090296,1781481040000,-3359.67674399,0.00014633,2]
[425090291,1781481040000,-346.851,0.00014552,2]
[425090295,1781481040000,-1904.45068154,0.00014633,2]
[425090300,1781481040000,-1330.23110248,0.00014718,2]
[425090303,1781481040000,-985.19998154,0.000148,2]
[425090301,1781481040000,-540.96,0.00014725,2]
[425090307,1781481040000,-500.0,0.00014833,2]
[425090311,1781481040000,-30691.06881813,0.0001485,2]
[425090304,1781481040000,-4832.51680966,0.000148,2]
[425090309,1781481040000,-500.0,0.00014849,2]
[425090305,1781481040000,-163.98,0.00014833,2]
[425090302,1781481040000,-264.6374937,0.000148,2]
[425090308,1781481040000,-631.01,0.00014849,2]
[425090306,1781481040000,-500.0,0.00014833,2]
[425090310,1781481040000,-7755.82445715,0.0001485,2]
[425090312,1781481040000,-412.68712,0.0001485,2]
[425090342,1781481040000,-631.01,0.00014899,2]
[425090289,1781481040000,-1555.5,0.0001455,2]
[425090346,1781481040000,-631.01,0.00014899,2]
[425090378,1781481040000,-500.0,0.00014983,2]
[425090375,1781481040000,-181.0,0.000149,2]
[425090374,1781481040000,-181.0,0.000149,2]
[425090383,1781481040000,-1163.8945884,0.00014984,2]
[425090380,1781481040000,-500.0,0.00014983,2]
[425090377,1781481040000,-459.31188642,0.0001496,2]
[425090381,1781481040000,-500.0,0.00014983,2]
[425090393,1781481040000,-210.53333334,0.0001499,2]
[425090385,1781481040000,-163.06545356,0.00014985,2]
[425090395,1781481040000,-1275.0,0.00014995,2]
[425090396,1781481040000,-383.0,0.00014995,2]
[425090394,1781481040000,-1359.0,0.00014995,2]
[425090386,1781481040000,-540.96,0.00014986,2]
[425090384,1781481040000,-227513.2626948,0.00014984,2]
[425090388,1781481040000,-150.0,0.00014986,2]
[425090392,1781481040000,-210.53333334,0.0001499,2]
[425090391,1781481040000,-210.53333334,0.0001499,2]
[425090387,1781481040000,-150.0,0.00014986,2]
[425090389,1781481040000,-150.0,0.00014986,2]
[425090403,1781481040000,-540.96,0.00014999,2]
[425090390,1781481040000,-150.0,0.00014986,2]
[425090398,1781481040000,-631.0,0.00014995,2]
[425090399,1781481040000,-419.0,0.00014995,2]
[425090344,1781481040000,-631.01,0.00014899,2]
[425090400,1781481040000,-6077.0,0.00014995,2]
[425090402,1781481040000,-540.96,0.00014999,2]
[425090397,1781481040000,-1228.0,0.00014995,2]
[425090379,1781481040000,-631.01,0.00014983,2]
[425090382,1781481040000,-459.5878067,0.00014984,2]
[425090401,1781481040000,-151.0,0.00014997,2]
[425090373,1781481040000,-209.8814222,0.000149,2]
[425090376,1781481040000,-2991.57404873,0.000149,2]
[425090343,1781481040000,-631.01,0.00014899,2]
[425090349,1781481040000,-679.41341252,0.00014899,2]
[425090348,1781481040000,-3000.0,0.00014899,2]
[425090356,1781481040000,-500.0,0.00014899,2]
[425090352,1781481040000,-500.0,0.00014899,2]
[425090353,1781481040000,-500.0,0.00014899,2]
[425090351,1781481040000,-500.0,0.00014899,2]
[425090359,1781481040000,-500.0,0.00014899,2]
[425090350,1781481040000,-500.0,0.00014899,2]
[425090360,1781481040000,-500.0,0.00014899,2]
[425090358,1781481040000,-268.06129672,0.00014899,2]
[425090357,1781481040000,-500.0,0.00014899,2]
[425090345,1781481040000,-631.01,0.00014899,2]
[425090354,1781481040000,-500.0,0.00014899,2]
[425090355,1781481040000,-500.0,0.00014899,2]
[425090365,1781481040000,-500.0,0.00014899,2]
[425090371,1781481040000,-1330.23110248,0.000149,2]
[425090367,1781481040000,-33287.1579,0.000149,2]
[425090368,1781481040000,-458.0,0.000149,5]
[425090364,1781481040000,-500.0,0.00014899,2]
[425090369,1781481040000,-10000.0,0.000149,2]
[425090372,1781481040000,-985.19998152,0.000149,2]
[425090370,1781481040000,-541.0,0.000149,5]
[425090366,1781481040000,-2000.0,0.000149,2]
[425090361,1781481040000,-500.0,0.00014899,2]
[425090363,1781481040000,-500.0,0.00014899,2]
[425090362,1781481040000,-500.0,0.00014899,2]
[425090442,1781481041000,-500.0,0.00014999,2]
[425090441,1781481041000,-500.0,0.00014999,2]
[425090435,1781481041000,-500.0,0.00014999,2]
[425090433,1781481041000,-457.34,0.00014999,2]
[425090436,1781481041000,-500.0,0.00014999,2]
[425090438,1781481041000,-500.0,0.00014999,2]
[425090437,1781481041000,-500.0,0.00014999,2]
[425090431,1781481041000,-250.0,0.00014999,2]
[425090440,1781481041000,-500.0,0.00014999,2]
[425090439,1781481041000,-500.0,0.00014999,2]
[425090434,1781481041000,-500.0,0.00014999,2]
[425090452,1781481041000,-500.0,0.00014999,2]
[425090443,1781481041000,-500.0,0.00014999,2]
[425090445,1781481041000,-500.0,0.00014999,2]
[425090453,1781481041000,-500.0,0.00014999,2]
[425090447,1781481041000,-500.0,0.00014999,2]
[425090454,1781481041000,-500.0,0.00014999,2]
[425090451,1781481041000,-500.0,0.00014999,2]
[425090446,1781481041000,-500.0,0.00014999,2]
[425090450,1781481041000,-500.0,0.00014999,2]
[425090449,1781481041000,-500.0,0.00014999,2]
[425090448,1781481041000,-500.0,0.00014999,2]
[425090432,1781481041000,-3000.0,0.00014999,2]
[425090444,1781481041000,-500.0,0.00014999,2]
[425090427,1781481041000,-631.01,0.00014999,2]
[425090417,1781481041000,-631.01,0.00014999,2]
[425090426,1781481041000,-631.01,0.00014999,2]
[425090408,1781481041000,-500.0,0.00014999,2]
[425090404,1781481041000,-540.96,0.00014999,2]
[425090406,1781481041000,-540.96,0.00014999,2]
[425090407,1781481041000,-541.19,0.00014999,2]
[425090405,1781481041000,-540.96,0.00014999,2]
[425090410,1781481041000,-500.0,0.00014999,2]
[425090411,1781481041000,-500.0,0.00014999,2]
[425090413,1781481041000,-500.0,0.00014999,2]
[425090414,1781481041000,-500.0,0.00014999,2]
[425090409,1781481041000,-500.0,0.00014999,2]
[425090418,1781481041000,-631.01,0.00014999,2]
[425090415,1781481041000,-484.52,0.00014999,2]
[425090412,1781481041000,-500.0,0.00014999,2]
[425090416,1781481041000,-631.01,0.00014999,2]
[425090419,1781481041000,-631.01,0.00014999,2]
[425090421,1781481041000,-631.01,0.00014999,2]
[425090422,1781481041000,-631.01,0.00014999,2]
[425090425,1781481041000,-631.01,0.00014999,2]
[425090420,1781481041000,-631.01,0.00014999,2]
[425090424,1781481041000,-631.01,0.00014999,2]
[425090430,1781481041000,-631.09,0.00014999,2]
[425090423,1781481041000,-631.01,0.00014999,2]
[425090429,1781481041000,-631.01,0.00014999,2]
[425090428,1781481041000,-631.01,0.00014999,2]
[425090456,1781481041000,-500.0,0.00014999,2]
[425090458,1781481041000,-500.0,0.00014999,2]
[425090459,1781481041000,-500.0,0.00014999,2]
[425090486,1781481041000,-1000.0,0.00015,2]
[425090483,1781481041000,-412.68712,0.00015,2]